bitfinex/quotes_SOLUSD_20250317
["timestamp","ask_amount","ask_price","bid_price","bid_amount"]
[1742186026605,10.4655941,129.34,129.3,6.64]
[1742186026909,10.4655941,129.34,129.3,25.28964886]
[1742186027898,18.1967941,129.35,129.3,35.75524296]
[1742186028092,18.1967941,129.35,129.31,0.063]
[1742186031608,10.4655941,129.34,129.31,0.063]
[1742186032187,10.4655941,129.35,129.31,0.063]
[1742186033011,10.4655941,129.35,129.31,312.063]
[1742186033714,7.7315,129.34,129.31,0.063]
[1742186034309,18.1970941,129.34,129.31,0.063]
[1742186034517,18.1970941,129.34,129.31,6.703]
[1742186036795,7.7315,129.34,129.31,6.703]
[1742186036999,7.7309,129.35,129.31,6.703]
[1742186038618,7.7309,129.35,129.31,14.4363]
[1742186038816,7.7309,129.35,129.31,6.703]
[1742186039013,18.1964941,129.35,129.31,6.703]
[1742186040721,18.1964941,129.35,129.31,14.4362]
[1742186040933,10.4655941,129.36,129.31,14.4362]
[1742186042434,7.7309,129.35,129.31,14.4362]
[1742186042731,7.7309,129.35,129.31,326.4362]
[1742186042913,18.1964941,129.35,129.31,6.703]
[1742186045536,7.7309,129.35,129.31,6.703]
[1742186045833,7.7309,129.35,129.31,14.4363]
[1742186046429,7.7309,129.35,129.31,6.703]
[1742186047238,7.7309,129.35,129.31,14.4362]
[1742186049038,0.03,129.38,129.34,10.4655941]
[1742186049352,0.03,129.38,129.35,6.64]
[1742186049949,0.03,129.38,129.35,17.1055941]
[1742186050160,0.03,129.38,129.36,1.6076]
[1742186050317,0.03,129.38,129.36,12.0731941]
[1742186051019,0.03,129.38,129.36,19.8033941]
[1742186052072,0.03,129.38,129.36,331.8033941]
[1742186052537,0.03,129.38,129.37,10.4655941]
[1742186053647,0.03,129.38,129.37,18.1952941]
[1742186053849,0.03,129.38,129.37,37.1292661]
[1742186054423,0.0001,129.39,129.38,100.831572]
[1742186054644,0.0001,129.39,129.38,111.2971661]
[1742186056255,0.0001,129.39,129.38,119.0262661]
[1742186057251,0.0001,129.39,129.38,81.8976]
[1742186057454,0.0001,129.39,129.36,10.4655941]
[1742186058145,0.0001,129.39,129.37,29.3995661]
[1742186058445,0.0001,129.39,129.35,94.80296157]
[1742186058446,0.0001,129.39,129.36,29.11524296]
[1742186058830,0.0001,129.39,129.37,10.4655941]
[1742186060348,0.0001,129.39,129.37,322.4655941]
[1742186060751,0.0001,129.39,129.37,330.1952941]
[1742186063650,0.0001,129.39,129.37,18.1952941]
[1742186064447,0.0001,129.39,129.38,10.4655941]
[1742186064649,0.0001,129.39,129.38,29.3995661]
[1742186064844,0.0001,129.39,129.38,109.6895661]
[1742186065049,0.0001,129.39,129.38,117.4186661]
[1742186066557,0.0001,129.39,129.38,429.4186661]
[1742186067836,0.0001,129.39,129.38,125.6908661]
[1742186068142,0.0001,129.39,129.38,126.84958982]
[1742186068740,0.03,129.41,129.4,18.933972]
[1742186068948,0.03,129.41,129.4,117.48799909]
[1742186069335,0.03,129.41,129.4,105.863872]
[1742186069539,0.03,129.41,129.4,116.3294661]
[1742186069847,0.03,129.41,129.4,124.0573661]
[1742186070456,0.03,129.41,129.4,86.9299]
[1742186070758,0.03,129.41,129.4,105.1233941]
[1742186071161,0.03,129.41,129.4,129.92306463]
[1742186071352,0.03,129.41,129.4,103.26119263]
[1742186071661,0.03,129.41,129.4,86.9299]
[1742186072048,0.03,129.41,129.4,94.6578]
[1742186072353,0.03,129.41,129.4,86.9299]
[1742186073339,36.36129263,129.41,129.38,80.2899]
[1742186073536,16.33129263,129.4,129.38,80.2899]
[1742186073742,16.33129263,129.39,129.33,16.61561577]
[1742186074052,24.06099263,129.37,129.33,80.2899]
[1742186074250,24.06099263,129.37,129.34,6.64]
[1742186074573,16.33129263,129.35,129.33,6.64]
[1742186075057,16.33129263,129.36,129.33,6.64]
[1742186075452,16.33129263,129.35,129.33,6.64]
[1742186075754,16.33129263,129.36,129.33,6.64]
[1742186076066,7.7297,129.37,129.33,6.64]
[1742186076247,24.06099263,129.37,129.33,6.64]
[1742186076446,16.33129263,129.37,129.33,6.64]
[1742186077567,16.33129263,129.36,129.33,6.64]
[1742186078461,20.0,129.34,129.33,6.64]
[1742186078964,44.06219263,129.35,129.33,6.64]
[1742186079167,27.7309,129.35,129.33,6.64]
[1742186079368,44.06219263,129.35,129.31,80.3529]
[1742186079667,44.06219263,129.35,129.33,6.66]
[1742186083481,16.33129263,129.34,129.33,6.66]
[1742186083857,24.06279263,129.34,129.33,6.66]
[1742186084069,7.7315,129.34,129.33,6.66]
[1742186084269,44.06249263,129.35,129.33,6.66]
[1742186084464,20.0,129.35,129.33,6.66]
[1742186084666,16.33129263,129.37,129.33,6.66]
[1742186084667,7.7299,129.37,129.33,6.66]
[1742186084974,7.7299,129.37,129.33,22.99129263]
[1742186085673,24.06059263,129.38,129.33,111.01329263]
[1742186085973,7.7293,129.38,129.34,16.33129263]
[1742186086874,7.7293,129.38,129.34,16.39429263]
[1742186087172,16.33129263,129.38,129.34,0.063]
[1742186088675,16.33129263,129.38,129.34,312.063]
[1742186089478,24.06059263,129.38,129.34,312.063]
[1742186089873,24.05999263,129.39,129.34,319.7944]
[1742186090063,7.7576,129.41,129.37,16.33129263]
[1742186090269,7.7576,129.41,129.38,6.66]
[1742186090270,0.03,129.41,129.38,6.66]
[1742186091577,0.03,129.41,129.38,14.3889]
[1742186092880,0.03,129.41,129.38,30.72019263]
[1742186093074,0.03,129.41,129.38,342.72019263]
[1742186093268,0.03,129.41,129.38,334.99129263]
[1742186093574,0.03,129.41,129.38,318.66]
[1742186093780,16.36129263,129.41,129.38,318.66]
[1742186094080,0.03,129.41,129.38,318.66]
[1742186094580,16.36129263,129.41,129.38,6.66]
[1742186094791,16.33129263,129.4,129.38,6.66]
[1742186095690,7.7285,129.39,129.38,6.66]
[1742186096197,24.05979263,129.39,129.38,6.66]
[1742186096682,43.38119263,129.39,129.35,6.66]
[1742186096883,16.33129263,129.37,129.35,6.66]
[1742186097864,43.38329263,129.38,129.35,6.66]
[1742186098373,16.33129263,129.37,129.34,0.063]
[1742186098689,24.06039263,129.38,129.34,6.723]
[1742186099965,16.33129263,129.37,129.34,6.723]
[1742186101585,43.38329263,129.38,129.34,6.723]
[1742186102784,16.33129263,129.37,129.34,6.723]
[1742186103196,16.33129263,129.38,129.34,6.723]
[1742186105194,7.7297,129.37,129.34,6.723]
[1742186106284,16.33129263,129.39,129.34,30.78569263]
[1742186106591,24.06009263,129.39,129.34,342.78569263]
[1742186106786,24.06009263,129.39,129.34,335.05429263]
[1742186106990,24.06009263,129.39,129.34,318.723]
[1742186107799,24.06009263,129.39,129.35,6.64]
[1742186108094,16.33129263,129.38,129.35,6.64]
[1742186109504,24.05949263,129.4,129.35,22.97129263]
[1742186109690,24.05949263,129.4,129.35,30.70169263]
[1742186110077,7.7282,129.4,129.35,30.70169263]
[1742186110901,16.36129263,129.41,129.36,24.06149263]
[1742186110902,24.08879263,129.41,129.36,24.06149263]
[1742186111070,18.21505577,129.41,129.36,18.18775577]
[1742186111275,18.21505577,129.41,129.36,19.68965577]
[1742186111706,18.21505577,129.41,129.36,92.24935577]
[1742186112076,7.7575,129.41,129.37,10.45755577]
[1742186112375,0.03,129.41,129.37,10.45755577]
[1742186112788,0.03,129.41,129.37,18.18675577]
[1742186112986,0.03,129.41,129.37,330.18675577]
[1742186113200,0.03,129.41,129.38,16.62194112]
[1742186113404,0.03,129.41,129.39,22.97761798]
[1742186113776,0.03,129.41,129.4,16.33761798]
[1742186114304,0.03,129.41,129.39,22.97761798]
[1742186115206,0.03,129.41,129.4,42.99948998]
[1742186115382,0.03,129.41,129.39,30.70591798]
[1742186115585,0.03,129.41,129.39,6.64]
[1742186116588,16.36761798,129.41,129.39,6.64]
[1742186116788,16.36761798,129.41,129.36,104.54357955]
[1742186116996,16.36761798,129.41,129.37,6.64]
[1742186117182,7.7573,129.41,129.37,22.97761798]
[1742186117699,0.03,129.41,129.37,30.70711798]
[1742186117883,0.03,129.41,129.38,16.33761798]
[1742186119398,0.03,129.41,129.37,30.70711798]
[1742186119621,0.03,129.41,129.38,16.33761798]
[1742186119898,0.03,129.41,129.37,30.70711798]
[1742186120085,0.03,129.41,129.37,6.64]
[1742186120292,0.03,129.41,129.37,22.97761798]
[1742186120601,0.03,129.41,129.37,30.70721798]
[1742186121208,0.03,129.41,129.37,14.3696]
[1742186121381,0.03,129.41,129.37,30.70721798]
[1742186122300,0.03,129.41,129.37,110.99711798]
[1742186122905,0.03,129.41,129.38,16.33761798]
[1742186123280,0.03,129.41,129.38,24.06661798]
[1742186124001,0.03,129.41,129.39,16.33761798]
[1742186124301,0.03,129.41,129.4,35.27158998]
[1742186125005,0.03,129.41,129.4,42.99948998]
[1742186126097,0.03,129.41,129.4,347.27158998]
[1742186126410,0.03,129.41,129.38,96.62751798]
[1742186127903,0.03,129.41,129.38,80.2899]
[1742186128112,16.33761798,129.4,129.36,80.43206157]
[1742186128325,16.33761798,129.38,129.36,80.2899]
[1742186128490,16.33761798,129.38,129.36,6.64]
[1742186129612,24.06711798,129.38,129.36,6.64]
[1742186130310,16.33761798,129.38,129.36,6.64]
[1742186130609,24.06641798,129.39,129.36,6.64]
[1742186132087,16.33761798,129.38,129.36,6.64]
[1742186132291,16.33761798,129.38,129.35,6.64]
[1742186132504,24.06731798,129.37,129.35,6.64]
[1742186133512,24.06731798,129.37,129.36,0.063]
[1742186134216,24.06691798,129.38,129.36,0.063]
[1742186135220,16.33761798,129.37,129.36,0.063]
[1742186136508,24.06731798,129.37,129.36,0.063]
[1742186143132,10.46636158,129.37,129.36,0.063]
[1742186143927,12.07756158,129.37,129.36,0.063]
[1742186144121,18.39394152,129.37,129.36,0.063]
[1742186144323,20.0,129.35,129.34,0.063]
[1742186144517,30.46636158,129.35,129.34,0.063]
[1742186145131,38.19726158,129.35,129.34,0.063]
[1742186156547,20.0,129.35,129.34,0.063]
[1742186157154,27.7309,129.35,129.34,0.063]
[1742186157336,38.19726158,129.35,129.34,0.063]
[1742186161844,10.46636158,129.36,129.34,0.063]
[1742186162036,0.03,129.37,129.34,0.063]
[1742186162242,0.03,129.37,129.35,6.64]
[1742186163530,0.03,129.37,129.35,17.10636158]
[1742186163947,0.03,129.37,129.35,24.83696158]
[1742186165161,0.03,129.37,129.35,336.83696158]
[1742186165967,0.03,129.37,129.35,326.3706]
[1742186166269,0.03,129.37,129.35,318.64]
[1742186166846,0.03,129.37,129.35,6.64]
[1742186167055,0.03,129.37,129.34,80.3529]
[1742186167056,10.49636158,129.37,129.34,80.3529]
[1742186167230,10.49636158,129.37,129.34,86.9929]
[1742186167431,18.22636158,129.37,129.34,86.9929]
[1742186167957,10.49636158,129.37,129.34,86.9929]
[1742186168336,0.03,129.37,129.34,94.7243]
[1742186169131,0.03,129.37,129.34,86.9929]
[1742186169349,0.03,129.37,129.34,6.703]
[1742186169840,0.03,129.37,129.34,318.703]
[1742186170447,0.03,129.37,129.34,326.4343]
[1742186170866,0.03,129.37,129.34,318.703]
[1742186173152,0.03,129.37,129.34,6.703]
[1742186173357,0.03,129.37,129.34,14.4344]
[1742186174056,0.03,129.37,129.34,6.703]
[1742186176155,0.03,129.37,129.34,318.703]
[1742186183969,0.03,129.37,129.34,6.703]
[1742186184347,10.46636158,129.36,129.34,6.703]
[1742186184540,10.46636158,129.35,129.34,0.063]
[1742186184943,18.19726158,129.35,129.34,0.063]
[1742186200279,37.13123358,129.35,129.34,0.0001]
[1742186205677,38.68943358,129.35,129.34,0.0001]
[1742186205860,20.0,129.32,129.31,0.063]
[1742186206066,30.46636158,129.32,129.31,0.063]
[1742186207069,38.19906158,129.32,129.31,0.063]
[1742186223071,57.13303358,129.32,129.31,0.0001]
[1742186224083,57.13303358,129.32,129.28,0.063]
[1742186224084,0.14216157,129.31,129.28,0.063]
[1742186224286,30.46636158,129.29,129.28,0.063]
[1742186224789,38.20086158,129.29,129.28,0.063]
[1742186226495,57.13483358,129.29,129.28,0.063]
[1742186228490,57.13483358,129.29,129.28,0.0001]
[1742186229089,10.46636158,129.26,129.25,0.063]
[1742186229513,18.20266158,129.26,129.25,0.063]
[1742186231204,37.13663358,129.26,129.25,0.0001]
[1742186232710,18.20266158,129.26,129.25,0.0001]
[1742186233798,20.0,129.26,129.25,0.0001]
[1742186234193,30.46636158,129.26,129.25,0.0001]
[1742186234400,38.20266158,129.26,129.25,0.0001]
[1742186235592,20.0,129.26,129.25,0.0001]
[1742186235793,27.7363,129.26,129.25,0.0001]
[1742186236001,38.20266158,129.26,129.25,0.0001]
[1742186238610,18.933972,129.31,129.25,0.0001]
[1742186238908,10.46636158,129.29,129.25,0.0001]
[1742186239102,10.46636158,129.28,129.25,0.0001]
[1742186240386,18.20166158,129.28,129.25,0.0001]
[1742186241016,10.46636158,129.28,129.25,0.0001]
[1742186242116,18.20166158,129.28,129.25,0.0001]
[1742186243614,10.46636158,129.28,129.25,0.0001]
[1742186244195,18.20156158,129.28,129.25,0.0001]
[1742186247426,10.46636158,129.28,129.25,0.0001]
[1742186247591,18.20036158,129.3,129.25,0.0001]
[1742186247792,18.20036158,129.3,129.25,10.46646158]
[1742186248110,18.20036158,129.3,129.25,0.0001]
[1742186253806,10.46636158,129.29,129.25,0.0001]
[1742186254320,10.46636158,129.27,129.25,0.0001]
[1742186255916,18.20256158,129.27,129.25,0.0001]
[1742186256521,7.7353,129.28,129.25,0.0001]
[1742186257020,18.20166158,129.28,129.25,0.0001]
[1742186257819,7.7353,129.28,129.25,0.0001]
[1742186258804,10.46636158,129.28,129.25,0.0001]
[1742186259413,10.46636158,129.26,129.25,0.0001]
[1742186260103,30.46636158,129.26,129.25,0.0001]
[1742186260418,49.40033358,129.26,129.25,0.0001]
[1742186261009,57.13663358,129.26,129.25,0.0001]
[1742186262420,38.20266158,129.26,129.25,0.0001]
[1742186265326,27.7363,129.26,129.25,0.0001]
[1742186265513,38.20266158,129.26,129.25,0.0001]
[1742186269415,18.20266158,129.26,129.25,0.0001]
[1742186271103,37.13663358,129.26,129.25,0.0001]
[1742186271726,37.63663358,129.26,129.25,0.0001]
[1742186272253,27.7381,129.23,129.22,0.063]
[1742186272412,38.20446158,129.23,129.22,0.063]
[1742186273434,38.20446158,129.23,129.22,0.0001]
[1742186274542,10.46636158,129.22,129.21,0.0001]
[1742186275755,18.20506158,129.22,129.21,0.0001]
[1742186279344,18.20506158,129.22,129.2,0.0001]
[1742186279549,10.46636158,129.21,129.2,0.0001]
[1742186280553,18.20566158,129.21,129.2,0.0001]
[1742186281061,37.13963358,129.21,129.2,0.0001]
[1742186282755,37.63963358,129.21,129.2,0.0001]
[1742186283757,37.13963358,129.21,129.2,0.0001]
[1742186284060,37.63963358,129.21,129.2,0.0001]
[1742186284259,37.13963358,129.21,129.2,0.0001]
[1742186284939,37.13963358,129.21,129.19,0.0431]
[1742186285260,10.46636158,129.2,129.19,0.0431]
[1742186286055,10.60852315,129.2,129.18,0.063]
[1742186286372,10.46636158,129.19,129.18,0.063]
[1742186286834,18.20686158,129.19,129.18,0.063]
[1742186287249,38.20686158,129.19,129.18,0.063]
[1742186291862,27.7405,129.19,129.18,0.063]
[1742186292545,20.0,129.19,129.18,0.063]
[1742186293045,27.7405,129.19,129.18,0.063]
[1742186295068,38.20686158,129.19,129.18,0.063]
[1742186296559,27.7405,129.19,129.18,0.063]
[1742186299454,38.20686158,129.19,129.18,0.063]
[1742186304070,27.7405,129.19,129.18,0.063]
[1742186304571,38.20686158,129.19,129.18,0.063]
[1742186307574,38.23686158,129.19,129.18,0.063]
[1742186309870,57.17083358,129.19,129.18,0.0001]
[1742186310074,37.17083358,129.19,129.18,0.0001]
[1742186313080,43.44857393,129.19,129.18,0.0001]
[1742186313469,37.17083358,129.19,129.18,0.0001]
[1742186315178,18.23686158,129.19,129.18,0.0001]
[1742186317680,7.7705,129.19,129.18,0.0001]
[1742186334308,10.49636158,129.19,129.18,0.0001]
[1742186335707,18.23686158,129.19,129.18,0.0001]
[1742186346898,37.17083358,129.19,129.18,0.0001]
[1742186352097,37.17083358,129.19,129.17,0.0001]
[1742186352098,18.933972,129.18,129.17,0.0001]
[1742186352298,71.2657799,129.18,129.17,0.0001]
[1742186352904,79.0068799,129.18,129.17,0.0001]
[1742186360313,37.14143358,129.18,129.17,0.0001]
[1742186366329,37.17143358,129.18,129.17,0.0001]
[1742186368527,20.0,129.16,129.15,0.063]
[1742186368705,38.933972,129.15,129.12,0.063]
[1742186368905,10.46636158,129.13,129.12,0.063]
[1742186370532,18.21046158,129.13,129.12,0.063]
[1742186371617,37.14443358,129.13,129.12,0.0001]
[1742186374120,79.0098799,129.13,129.12,0.0001]
[1742186374615,20.0,129.1,129.09,0.063]
[1742186374818,38.21226158,129.1,129.09,0.063]
[1742186377927,20.0,129.1,129.09,0.063]
[1742186378135,7.7454,129.11,129.09,0.063]
[1742186378136,18.21176158,129.11,129.09,0.063]
[1742186378324,10.46636158,129.1,129.09,0.063]
[1742186379242,38.21226158,129.1,129.09,0.063]
[1742186386845,27.7459,129.1,129.09,0.063]
[1742186387042,20.0,129.1,129.09,0.063]
[1742186387942,27.7459,129.1,129.09,0.063]
[1742186389151,38.21226158,129.1,129.09,0.063]
[1742186406237,18.21226158,129.1,129.09,0.0001]
[1742186406433,37.14623358,129.1,129.09,0.0001]
[1742186406949,18.21226158,129.1,129.09,0.0001]
[1742186408853,10.46636158,129.1,129.09,0.0001]
[1742186409558,18.21226158,129.1,129.09,0.0001]
[1742186415564,18.21196158,129.11,129.09,0.0001]
[1742186415858,0.03,129.12,129.09,0.0001]
[1742186416659,0.03,129.12,129.09,10.46646158]
[1742186416858,0.03,129.12,129.1,10.46636158]
[1742186417059,0.03,129.12,129.11,6.64]
[1742186418355,0.03,129.12,129.11,24.85166158]
[1742186419765,0.03,129.12,129.11,336.85166158]
[1742186420663,0.03,129.12,129.11,436.07553358]
[1742186420874,0.03,129.12,129.11,443.74693358]
[1742186423767,0.03,129.13,129.12,18.933972]
[1742186423974,0.03,129.13,129.12,151.5556799]
[1742186424269,0.03,129.13,129.12,287.21673879]
[1742186424569,0.03,129.13,129.12,286.0556799]
[1742186425069,0.03,129.13,129.12,293.8003799]
[1742186426649,0.03,129.13,129.12,605.8003799]
[1742186427462,0.03,129.13,129.12,471.3003799]
[1742186430171,0.03,129.13,129.12,429.43493358]
[1742186433156,0.03,129.13,129.12,117.43493358]
[1742186435121,0.03,129.13,129.12,124.07493358]
[1742186436208,0.03,129.13,129.12,436.07493358]
[1742186437095,10.49636158,129.13,129.09,0.0001]
[1742186437292,10.46636158,129.1,129.09,0.0001]
[1742186437483,10.46636158,129.1,129.06,0.6734671]
[1742186437689,30.46636158,129.08,129.06,0.6734671]
[1742186437905,32.04866158,129.08,129.06,0.6734671]
[1742186439110,39.79576158,129.08,129.06,0.6734671]
[1742186439330,101.17116947,129.08,128.98,92.39365312]
[1742186439658,10.46636158,129.03,128.98,99.03365312]
[1742186440036,10.46636158,129.02,128.98,99.03365312]
[1742186440509,10.46636158,129.02,128.98,86.9299]
[1742186441429,18.21736158,129.02,128.98,86.9299]
[1742186441599,7.751,129.02,128.98,97.39626158]
[1742186442295,20.0,129.02,128.98,97.39626158]
[1742186444410,38.21716158,129.02,128.99,6.64]
[1742186444795,30.46636158,129.02,128.99,6.64]
[1742186445153,38.21746158,129.02,128.99,6.64]
[1742186445416,38.21746158,129.02,128.97,10.46636158]
[1742186445615,38.21746158,129.02,128.97,17.10636158]
[1742186446301,38.21746158,129.02,128.97,329.10636158]
[1742186447514,38.21746158,129.02,128.97,318.64]
[1742186447739,38.21746158,129.02,128.97,6.64]
[1742186447740,10.46636158,129.01,128.97,6.64]
[1742186448420,18.21796158,129.01,128.97,6.64]
[1742186448822,7.7516,129.01,128.97,6.64]
[1742186449503,18.21796158,129.01,128.97,6.64]
[1742186450324,7.7525,128.99,128.96,0.063]
[1742186451513,18.21846158,129.0,128.96,0.063]
[1742186451710,18.21846158,129.0,128.97,0.063]
[1742186455605,20.0,128.98,128.97,0.063]
[1742186461893,27.7531,128.98,128.97,0.063]
[1742186462281,38.21946158,128.98,128.97,0.063]
[1742186463698,27.7531,128.98,128.97,0.063]
[1742186463876,20.0,128.98,128.97,0.063]
[1742186464075,27.7531,128.98,128.97,0.063]
[1742186464500,38.21946158,128.98,128.97,0.063]
[1742186465111,27.7531,128.98,128.97,0.063]
[1742186466306,38.21946158,128.98,128.97,0.063]
[1742186467002,27.7531,128.98,128.97,0.063]
[1742186468986,38.21946158,128.98,128.97,0.063]
[1742186470920,27.7531,128.98,128.97,0.063]
[1742186472886,20.0,128.98,128.97,0.063]
[1742186479412,20.9367,129.03,128.97,0.063]
[1742186479413,1.561,129.03,128.97,0.063]
[1742186479614,1.561,129.03,128.98,10.46636158]
[1742186479940,10.46636158,129.02,128.97,17.16936158]
[1742186480217,10.46636158,129.01,128.97,6.703]
[1742186481217,10.46636158,129.01,128.97,14.4565]
[1742186482630,7.7511,129.02,128.97,24.92286158]
[1742186482918,10.46636158,129.02,128.97,24.92286158]
[1742186483611,10.46636158,129.01,128.97,24.92286158]
[1742186485809,10.46636158,129.02,128.97,24.92286158]
[1742186486016,10.49636158,129.05,129.0,10.46636158]
[1742186486216,0.03,129.05,129.01,10.46636158]
[1742186486415,0.03,129.05,129.01,17.10636158]
[1742186486621,0.03,129.05,129.02,10.46636158]
[1742186487900,0.03,129.05,129.03,10.46636158]
[1742186490022,0.03,129.05,129.02,18.21646158]
[1742186491018,0.03,129.05,129.04,10.46636158]
[1742186492613,0.03,129.05,129.04,37.11183358]
[1742186493109,0.03,129.05,129.04,44.86133358]
[1742186494228,0.03,129.05,129.04,356.86133358]
[1742186494939,0.03,129.05,129.04,437.15123358]
[1742186497514,0.03,129.05,129.04,125.15123358]
[1742186500425,0.03,129.05,129.04,437.15123358]
[1742186502835,0.03,129.13,129.09,10.46636158]
[1742186503033,0.03,129.13,129.1,6.64]
[1742186503235,7.7742,129.13,129.1,6.64]
[1742186508628,0.03,129.13,129.1,6.64]
[1742186511425,0.03,129.13,129.1,14.3858]
[1742186511633,0.03,129.13,129.11,10.46636158]
[1742186512744,0.03,129.13,129.1,17.10636158]
[1742186513548,0.03,129.13,129.1,6.64]
[1742186514649,10.49636158,129.13,129.1,6.64]
[1742186515438,7.7447,129.12,129.1,6.64]
[1742186515641,18.21106158,129.12,129.1,6.64]
[1742186515839,18.21106158,129.12,129.07,90.72626158]
[1742186516047,10.46636158,129.11,129.07,80.2599]
[1742186516252,0.03,129.13,129.07,86.8999]
[1742186516556,18.24066158,129.13,129.08,10.46636158]
[1742186517150,7.7743,129.13,129.08,10.46636158]
[1742186517837,18.24066158,129.13,129.08,10.46636158]
[1742186518269,18.24066158,129.13,129.08,18.21346158]
[1742186519756,7.7743,129.13,129.08,18.21346158]
[1742186520154,7.7743,129.13,129.09,10.46636158]
[1742186520350,0.03,129.13,129.1,10.46636158]
[1742186520551,0.03,129.13,129.1,17.10636158]
[1742186521652,0.03,129.13,129.1,6.64]
[1742186522037,0.03,129.13,129.09,6.64]
[1742186522240,10.49636158,129.13,129.09,6.64]
[1742186523438,0.03,129.13,129.09,6.64]
[1742186525660,10.46636158,129.12,129.09,6.64]
[1742186525958,19.78126158,129.11,129.09,6.64]
[1742186526158,9.3149,129.11,129.09,6.64]
[1742186527356,19.78126158,129.11,129.06,10.46636158]
[1742186527554,19.78126158,129.11,129.07,6.64]
[1742186527752,10.46636158,129.1,129.05,80.3229]
[1742186527956,10.46636158,129.09,129.05,86.9629]
[1742186528257,10.46636158,129.09,129.05,6.703]
[1742186528466,10.46636158,129.09,129.05,0.063]
[1742186528642,10.46636158,129.09,129.05,6.703]
[1742186529551,30.46636158,129.08,129.05,0.063]
[1742186529754,7.7477,129.07,129.05,0.063]
[1742186532251,18.21366158,129.08,129.05,0.063]
[1742186532865,7.7473,129.08,129.05,0.063]
[1742186535668,18.21366158,129.08,129.05,0.063]
[1742186551069,20.0,129.08,129.05,10.52936158]
[1742186551874,0.03,129.09,129.07,10.46636158]
[1742186552093,0.03,129.09,129.08,6.64]
[1742186554272,0.03,129.09,129.08,14.3871]
[1742186556876,0.03,129.09,129.08,24.85346158]
[1742186560587,0.03,129.09,129.08,25.13778472]
[1742186561282,0.03,129.09,129.08,124.04733358]
[1742186562275,0.03,129.09,129.08,436.04733358]
[1742186567674,0.03,129.09,129.08,124.04733358]
[1742186568672,0.03,129.09,129.08,105.39768472]
[1742186573075,0.03,129.09,129.08,124.04733358]
[1742186574695,0.03,129.13,129.09,18.933972]
[1742186574893,0.03,129.13,129.12,36.86071044]
[1742186575079,0.03,129.13,129.12,97.65058472]
[1742186575287,0.03,129.13,129.12,105.11096158]
[1742186579774,0.03,129.13,129.12,124.04493358]
[1742186579978,0.03,129.13,129.12,165.9103799]
[1742186580485,0.03,129.13,129.12,124.04493358]
[1742186580888,0.03,129.13,129.12,105.11096158]
[1742186581603,0.03,129.18,129.16,18.933972]
[1742186581779,0.03,129.18,129.17,85.36315676]
[1742186582180,0.03,129.18,129.17,43.49771044]
[1742186584683,0.03,129.18,129.17,436.04193358]
[1742186585903,0.03,129.18,129.17,477.9073799]
[1742186586200,0.0001,129.18,129.17,477.9073799]
[1742186586499,0.03,129.19,129.18,0.28432314]
[1742186586799,0.03,129.19,129.18,53.77660796]
[1742186586996,0.03,129.25,129.24,0.28432314]
[1742186587296,0.03,129.25,129.24,158.1656799]
[1742186587679,0.03,129.25,129.24,116.30023358]
[1742186587880,0.03,129.25,129.24,97.36626158]
[1742186590000,0.03,129.25,129.24,105.10376158]
[1742186590302,0.03,129.25,129.24,105.38808472]
[1742186593809,0.03,129.25,129.24,97.36626158]
[1742186594314,0.03,129.25,129.24,86.8999]
[1742186594509,0.03,129.25,129.24,97.36626158]
[1742186595085,0.03,129.25,129.24,80.2599]
[1742186595689,0.03,129.25,129.22,10.46636158]
[1742186595895,0.03,129.25,129.21,10.46636158]